bitfinex-derivatives/quotes_BTCF0:USTF0_20250218
["timestamp","ask_amount","ask_price","bid_price","bid_amount"]
[1739843751305,0.00015573,96347.0,96345.0,0.21799728]
[1739843752308,0.00015573,96347.0,96345.0,0.21899728]
[1739843752609,0.00015573,96347.0,96345.0,0.21999728]
[1739843754954,0.00015573,96347.0,96345.0,0.21899728]
[1739843755102,0.00015573,96347.0,96345.0,0.22099728]
[1739843755502,0.00015573,96347.0,96345.0,0.21999728]
[1739843755719,0.00015573,96347.0,96345.0,0.22099728]
[1739843756099,0.00015573,96347.0,96345.0,0.21899728]
[1739843756303,0.00015573,96347.0,96345.0,0.21999728]
[1739843757066,0.00015573,96347.0,96345.0,0.21899728]
[1739843757304,0.00015573,96347.0,96345.0,0.22099728]
[1739843757704,0.00015573,96347.0,96345.0,0.21999728]
[1739843778723,0.00015573,96347.0,96346.0,1.5]
[1739843779307,0.00015573,96347.0,96345.0,0.21999728]
[1739843780823,0.00015573,96347.0,96346.0,0.001]
[1739843781610,0.00015573,96347.0,96345.0,0.21899728]
[1739843781818,0.00015573,96347.0,96345.0,0.21999728]
[1739843782326,0.00015573,96347.0,96345.0,0.21799728]
[1739843782528,0.00015573,96347.0,96346.0,0.001]
[1739843784020,0.00015573,96347.0,96345.0,0.21899728]
[1739843784221,0.00015573,96347.0,96345.0,0.21999728]
[1739843784625,0.00015573,96347.0,96345.0,0.21899728]
[1739843784926,0.00015573,96347.0,96346.0,0.001]
[1739843785722,0.00015573,96347.0,96345.0,0.21899728]
[1739843786019,0.00015573,96347.0,96345.0,0.21999728]
[1739843787119,0.00015573,96347.0,96345.0,0.21899728]
[1739843787320,0.00215573,96347.0,96345.0,0.21799728]
[1739843787533,0.00315573,96347.0,96345.0,0.21799728]
[1739843787730,0.065,96346.0,96345.0,0.21799728]
[1739843789128,0.066,96346.0,96345.0,0.21799728]
[1739843789524,0.067,96346.0,96345.0,0.21799728]
[1739843803625,0.066,96346.0,96345.0,0.21999728]
[1739843804228,0.065,96346.0,96345.0,0.21799728]
[1739843804528,0.065,96346.0,96345.0,0.21999728]
[1739843806533,0.065,96346.0,96345.0,0.21899728]
[1739843808140,0.065,96346.0,96345.0,0.21799728]
[1739843809235,0.065,96346.0,96345.0,0.21899728]
[1739843809738,0.065,96346.0,96345.0,0.21799728]
[1739843809929,0.065,96346.0,96345.0,0.21899728]
[1739843810434,0.065,96346.0,96345.0,0.22099728]
[1739843811134,0.065,96346.0,96345.0,0.21999728]
[1739843820131,3e-08,96347.0,96345.0,0.21999728]
[1739843820737,3e-08,96347.0,96346.0,1.5]
[1739843821243,0.1,96400.0,96373.0,0.0518793]
[1739843821436,0.0316,96383.0,96382.0,0.2074997]
[1739843821637,0.0316,96383.0,96382.0,0.5682997]
[1739843822641,0.0336,96383.0,96382.0,0.5692997]
[1739843823645,0.0396,96383.0,96382.0,0.5702997]
[1739843826780,0.0336,96383.0,96382.0,0.5692997]
[1739843827245,0.0316,96383.0,96382.0,0.5682997]
[1739843827441,0.02642534,96383.0,96382.0,0.5682997]
[1739843827645,0.02842534,96383.0,96382.0,0.5682997]
[1739843829047,0.02942534,96383.0,96382.0,0.5682997]
[1739843829643,0.02742534,96383.0,96382.0,0.5682997]
[1739843830444,0.02642534,96383.0,96382.0,0.5682997]
[1739843832949,0.02642534,96383.0,96382.0,0.5692997]
[1739843833311,0.02642534,96383.0,96382.0,0.5722997]
[1739843834382,0.02942534,96383.0,96382.0,0.5692997]
[1739843834845,0.02942534,96383.0,96382.0,0.3618]
[1739843835046,0.02942534,96383.0,96382.0,0.3119]
[1739843835350,0.02942534,96383.0,96373.0,0.00015565]
[1739843835550,0.16286432,96383.0,96366.0,0.2075335]
[1739843835753,0.06671949,96373.0,96366.0,0.2075335]
[1739843835937,0.0301,96372.0,96366.0,0.2075335]
[1739843836142,0.0301,96372.0,96363.0,0.3608]
[1739843836342,0.0301,96372.0,96356.0,1.5006]
[1739843836650,0.10162973,96366.0,96359.0,0.5683489]
[1739843837255,0.11216046,96366.0,96359.0,0.5683489]
[1739843837548,0.3608,96362.0,96356.0,0.01152]
[1739843837750,0.3608,96362.0,96356.0,0.011]
[1739843838147,0.0328,96361.0,96356.0,0.011]
[1739843838679,0.032,96360.0,96356.0,0.011]
[1739843839146,0.0328,96359.0,96356.0,0.2185543]
[1739843839348,0.0278,96359.0,96356.0,0.2125543]
[1739843839946,0.0238,96359.0,96356.0,0.2075543]
[1739843840146,0.0238,96359.0,96358.0,0.3608]
[1739843840645,0.0268,96359.0,96358.0,0.3608]
[1739843842003,0.003,96359.0,96358.0,0.3608]
[1739843842456,0.007,96359.0,96358.0,0.3608]
[1739843843241,0.003,96359.0,96358.0,0.3608]
[1739843843556,0.005,96359.0,96358.0,0.3608]
[1739843844065,0.003,96359.0,96358.0,0.3608]
[1739843844355,0.006,96359.0,96358.0,0.3608]
[1739843845158,0.005,96359.0,96358.0,0.3608]
[1739843845761,0.002,96359.0,96358.0,0.3608]
[1739843846059,0.004,96359.0,96358.0,0.3608]
[1739843846554,0.005,96359.0,96358.0,0.3608]
[1739843847850,0.004,96359.0,96358.0,0.3608]
[1739843849453,0.001,96359.0,96358.0,0.3608]
[1739843850459,0.002,96359.0,96358.0,0.3608]
[1739843851061,0.001,96359.0,96358.0,0.3608]
[1739843851904,0.00015536,96374.0,96358.0,0.4126878]
[1739843852064,0.00015536,96374.0,96373.0,0.3608]
[1739843852762,0.00015536,96374.0,96373.0,0.57897967]
[1739843853857,0.00115536,96374.0,96373.0,0.57897967]
[1739843854464,0.00015536,96374.0,96373.0,0.5683191]
[1739843854663,0.00115536,96374.0,96373.0,0.5683191]
[1739843854952,0.00215536,96374.0,96373.0,0.5683191]
[1739843855371,0.00215536,96374.0,96373.0,0.9291191]
[1739843855958,0.00115536,96374.0,96373.0,0.9291191]
[1739843856190,0.00215536,96374.0,96373.0,0.9291191]
[1739843858267,0.00215536,96374.0,96373.0,0.5683191]
[1739843858670,0.00215536,96374.0,96373.0,0.2075191]
[1739843869210,0.00215536,96374.0,96373.0,1.7075191]
[1739843870386,0.00215536,96374.0,96373.0,0.2075191]
[1739843905204,0.00215536,96374.0,96373.0,1.7075191]
[1739843905388,0.00215536,96374.0,96373.0,0.2075191]
[1739843905795,0.00215536,96374.0,96373.0,1.7075191]
[1739843906502,0.00115536,96374.0,96373.0,1.7115191]
[1739843907723,0.00015536,96374.0,96373.0,1.7115191]
[1739843907907,0.00015536,96374.0,96373.0,0.2135191]
[1739843908299,0.00015536,96374.0,96373.0,0.2105191]
[1739843908798,0.00015536,96374.0,96373.0,0.2135191]
[1739843918317,0.00015536,96374.0,96373.0,0.2105191]
[1739843918614,0.00015536,96374.0,96373.0,0.2115191]
[1739843919416,0.00015536,96374.0,96373.0,0.2095191]
[1739843919640,0.00015536,96374.0,96373.0,0.2115191]
[1739843926206,0.00015536,96374.0,96373.0,0.2095191]
[1739843927212,0.00015536,96374.0,96373.0,0.2075191]
[1739843927721,0.00115536,96374.0,96373.0,0.2075191]
[1739843928112,0.00215536,96374.0,96373.0,0.2075191]
[1739843989359,0.00215536,96374.0,96371.0,0.032]
[1739843989563,0.0323,96373.0,96370.0,0.5688446]
[1739843989758,0.0323,96373.0,96370.0,0.3608]
[1739843989957,0.0323,96373.0,96371.0,0.2075225]
[1739843993868,0.3931,96373.0,96357.0,0.2075523]
[1739843994060,0.13330854,96367.0,96357.0,0.2075523]
[1739843994288,0.0606,96366.0,96357.0,0.2075523]
[1739843995170,0.031,96365.0,96357.0,0.2075523]
[1739843995471,0.031,96365.0,96357.0,0.22209137]
[1739843995670,0.031,96365.0,96358.0,0.2075497]
[1739843995862,0.04161721,96365.0,96358.0,0.2075497]
[1739843996063,0.04161721,96365.0,96359.0,0.2075481]
[1739843996372,0.031,96365.0,96361.0,0.2075442]
[1739843996561,0.031,96365.0,96362.0,0.0301]
[1739843998670,0.04146092,96365.0,96362.0,0.0331]
[1739843999874,0.04146092,96365.0,96362.0,0.0361]
[1739844000471,0.031,96365.0,96362.0,0.0361]
[1739844000972,0.0306,96366.0,96362.0,0.2436415]
[1739844001372,0.0306,96366.0,96365.0,0.2075363]
[1739844001576,0.0639,96382.0,96373.0,0.2075191]
[1739844001874,0.0313,96382.0,96373.0,0.2075191]
[1739844002278,0.0313,96382.0,96373.0,0.3003191]
[1739844002877,0.01050647,96381.0,96373.0,0.3003191]
[1739844003270,0.00115536,96374.0,96373.0,0.3003191]
[1739844003490,0.00115536,96374.0,96373.0,0.31067552]
[1739844004074,0.00215536,96374.0,96373.0,0.31067552]
[1739844004480,0.00215536,96374.0,96373.0,0.3003191]
[1739844005484,0.00215536,96374.0,96373.0,0.2686191]
[1739844005771,0.00215536,96374.0,96373.0,0.2386191]
[1739844005975,0.00215536,96374.0,96373.0,0.2075191]
[1739844006870,0.00215536,96374.0,96373.0,0.2397191]
[1739844017583,0.00215536,96374.0,96373.0,0.2075191]
[1739844020882,0.00215536,96374.0,96373.0,0.5683191]
[1739844021282,0.00215536,96374.0,96373.0,0.2075191]
[1739844021484,0.01277075,96374.0,96373.0,0.2075191]
[1739844022842,0.00215536,96374.0,96373.0,0.2075191]
[1739844028384,0.00115536,96374.0,96373.0,0.2075191]
[1739844029385,0.00015536,96374.0,96373.0,0.2075191]
[1739844033999,0.00015536,96374.0,96373.0,0.2095191]
[1739844034699,0.00015536,96374.0,96373.0,0.2085191]
[1739844034902,0.00015536,96374.0,96373.0,0.2105191]
[1739844035507,0.00015536,96374.0,96373.0,0.2085191]
[1739844035696,0.00015536,96374.0,96373.0,0.2095191]
[1739844042694,0.00015536,96374.0,96373.0,1.7095191]
[1739844043606,1.10640884,96400.0,96399.0,0.2074629]
[1739844043607,0.1,96400.0,96399.0,0.2074629]
[1739844043812,0.1,96400.0,96399.0,0.5682629]
[1739844044703,0.107,96400.0,96399.0,0.5692629]
[1739844045012,0.114,96400.0,96399.0,0.5702629]
[1739844045403,0.114,96400.0,96399.0,0.580672]
[1739844046421,0.107,96400.0,96399.0,0.579672]
[1739844046710,0.114,96400.0,96399.0,0.580672]
[1739844046909,0.107,96400.0,96399.0,0.579672]
[1739844047114,0.113,96400.0,96399.0,0.580672]
[1739844049402,0.113,96400.0,96399.0,0.5702629]
[1739844054521,0.12332378,96400.0,96399.0,0.5702629]
[1739844054717,0.113,96400.0,96399.0,0.5702629]
[1739844063218,0.113,96400.0,96399.0,0.9310629]
[1739844066818,0.0306,96411.0,96399.0,0.7236]
[1739844067033,0.0306,96411.0,96410.0,0.5682392]
[1739844068116,0.0376,96411.0,96410.0,0.5692392]
[1739844068527,0.0446,96411.0,96410.0,0.5692392]
[1739844069920,0.0446,96411.0,96410.0,0.5682392]
[1739844070123,0.0346,96411.0,96410.0,0.5702392]
[1739844072427,0.0346,96411.0,96410.0,0.002]
[1739844072614,0.0346,96411.0,96403.0,0.2074531]
[1739844072813,0.0326,96410.0,96403.0,0.2074531]
[1739844073045,0.0326,96410.0,96399.0,0.3608]
[1739844073216,0.3107216,96409.0,96399.0,0.3608]
[1739844073517,0.2074416,96409.0,96399.0,0.3608]
[1739844073924,0.2074416,96409.0,96403.0,0.001]
[1739844074561,0.2074416,96409.0,96399.0,0.3608]
[1739844074716,0.2084416,96409.0,96399.0,0.3608]
[1739844075018,0.207449,96406.0,96390.0,0.00171146]
[1739844075224,0.2074539,96404.0,96390.0,0.00171146]
[1739844075421,0.10151847,96400.0,96390.0,0.00171146]
[1739844075617,0.0326,96399.0,96390.0,0.00171146]
[1739844075821,0.0326,96399.0,96390.0,0.20919216]
[1739844076127,0.0319,96398.0,96390.0,0.20919216]
[1739844076325,0.0319,96398.0,96390.0,0.00171146]
[1739844076521,0.3608,96395.0,96390.0,0.00171146]
[1739844077327,0.24986078,96398.0,96390.0,0.00171146]
[1739844077524,0.25186078,96398.0,96390.0,0.00171146]
[1739844077822,0.3628,96395.0,96390.0,0.00171146]
[1739844078228,0.3648,96395.0,96390.0,0.00171146]
[1739844080231,0.3628,96395.0,96390.0,0.00171146]
[1739844080426,0.3638,96395.0,96390.0,0.00171146]
[1739844081329,0.3668,96395.0,96390.0,0.00171146]
[1739844084626,0.3668,96395.0,96390.0,0.00015565]
[1739844089327,0.2074737,96394.0,96390.0,0.00015565]
[1739844089526,0.3668,96395.0,96390.0,0.00015565]
[1739844089732,0.2074792,96392.0,96390.0,0.00015565]
[1739844090742,0.0318,96393.0,96370.0,0.207524]
[1739844090743,0.2074971,96384.0,96370.0,0.207524]
[1739844090930,0.0641,96383.0,96370.0,0.207524]
[1739844091533,0.2715985,96383.0,96370.0,0.207524]
[1739844091742,0.2715985,96383.0,96371.0,0.0329]
[1739844093527,0.2715985,96383.0,96371.0,0.0349]
[1739844094982,0.2715985,96383.0,96371.0,0.0369]
[1739844102456,0.2715985,96383.0,96371.0,0.2444223]
[1739844104046,0.2715985,96383.0,96372.0,0.2075202]
[1739844105537,0.2715985,96383.0,96372.0,0.2085202]
[1739844106046,0.2075003,96382.0,96372.0,0.2095202]
[1739844106753,0.3408655,96382.0,96372.0,0.2095202]
[1739844107135,0.3408655,96382.0,96372.0,0.2085202]
[1739844107347,0.3408655,96382.0,96372.0,0.2095202]
[1739844108744,0.1333652,96382.0,96372.0,0.002]
[1739844108938,0.2075072,96379.0,96372.0,0.002]
[1739844109637,0.2075177,96374.0,96372.0,0.002]
[1739844109846,0.0628,96373.0,96372.0,0.002]
[1739844110041,0.3737991,96373.0,96372.0,0.002]
[1739844110248,0.2703191,96373.0,96372.0,0.002]
[1739844110645,0.28057169,96373.0,96372.0,0.002]
[1739844111743,0.28057169,96373.0,96372.0,0.001]
[1739844112141,0.07305259,96373.0,96367.0,0.00015565]
[1739844113139,0.2075268,96370.0,96367.0,0.00015565]
[1739844114840,0.2105268,96370.0,96367.0,0.00015565]
[1739844115152,0.2135268,96370.0,96367.0,0.00015565]
[1739844116850,0.2075297,96369.0,96367.0,0.00015565]
[1739844117050,0.2394297,96369.0,96367.0,0.00015565]
[1739844118343,0.2424297,96369.0,96367.0,0.00015565]
[1739844118746,0.2454297,96369.0,96367.0,0.00015565]
[1739844119747,0.2135297,96369.0,96367.0,0.00015565]
[1739844130850,0.2135297,96369.0,96367.0,1e-08]
[1739844131054,0.3608,96368.0,96367.0,1e-08]
[1739844132461,0.3638,96368.0,96367.0,1e-08]
[1739844133362,0.3668,96368.0,96367.0,0.00100001]
[1739844133564,0.47068,96368.0,96367.0,0.00100001]
[1739844134663,0.46768,96368.0,96367.0,0.00100001]
[1739844134862,0.47268,96368.0,96367.0,0.00100001]
[1739844137156,0.47268,96368.0,96354.0,0.0641]
[1739844137459,0.1333652,96364.0,96354.0,0.0641]
[1739844137662,0.2075435,96362.0,96354.0,0.0641]
[1739844138259,0.2395435,96362.0,96354.0,0.0641]
[1739844138760,0.2075457,96361.0,96354.0,0.0641]
[1739844140965,0.2095457,96361.0,96354.0,0.0641]
[1739844141983,0.2075529,96358.0,96354.0,0.0641]
[1739844143883,0.2075529,96358.0,96348.0,0.00015565]
[1739844144185,0.2075705,96350.0,96348.0,0.00015565]
[1739844144378,0.0325,96349.0,96348.0,0.00015565]
[1739844148879,0.04284229,96349.0,96348.0,0.00015565]
[1739844151585,0.04284229,96349.0,96348.0,7.956e-05]
[1739844154425,0.2075798,96345.0,96340.0,0.3608]
[1739844154786,0.2075798,96345.0,96341.0,0.0318]
[1739844156386,0.2075798,96345.0,96341.0,0.0338]
[1739844156583,0.207583,96344.0,96341.0,0.0338]
[1739844157692,0.207583,96344.0,96341.0,0.0358]
[1739844158385,0.207583,96344.0,96341.0,0.0348]
[1739844158790,0.2075849,96343.0,96341.0,0.0348]
[1739844160485,0.2075849,96343.0,96341.0,0.0338]
[1739844160790,0.2075849,96343.0,96341.0,0.0348]
[1739844161290,0.2075849,96343.0,96341.0,0.0338]
[1739844161485,0.2075849,96343.0,96341.0,0.0328]
[1739844167198,0.3608,96344.0,96341.0,0.0328]
[1739844167397,0.10508,96343.0,96342.0,0.031]
[1739844168403,0.10508,96343.0,96341.0,0.0328]
[1739844168603,0.10508,96343.0,96341.0,0.0318]
[1739844169693,0.3126639,96343.0,96341.0,0.0318]
[1739844169892,0.2075839,96343.0,96341.0,0.0318]
[1739844170304,0.2075839,96343.0,96334.0,0.031]
[1739844170502,0.2075839,96343.0,96341.0,0.001]
[1739844171389,0.2075839,96343.0,96335.0,0.03]
[1739844172006,0.2075839,96343.0,96341.0,0.001]
[1739844174107,0.2075839,96343.0,96335.0,0.03]
[1739844174406,0.2075839,96343.0,96335.0,0.032]
[1739844174803,0.2075839,96343.0,96335.0,0.03]
[1739844174996,0.2075839,96343.0,96341.0,0.001]
[1739844175403,0.2075839,96343.0,96335.0,0.03]
[1739844175603,0.2075839,96343.0,96335.0,0.032]
[1739844176104,0.2075839,96343.0,96335.0,0.034]
[1739844176299,0.2075876,96342.0,96335.0,0.034]
[1739844177014,0.2075876,96342.0,96341.0,0.001]
[1739844177703,0.2075876,96342.0,96335.0,0.034]
[1739844178101,0.2075876,96342.0,96335.0,0.032]
[1739844178302,0.2075876,96342.0,96341.0,0.001]
[1739844178809,0.2075876,96342.0,96335.0,0.034]
[1739844179609,0.2075876,96342.0,96336.0,0.3608]
[1739844180265,0.207589,96341.0,96336.0,0.3608]
[1739844181510,0.207589,96341.0,96336.0,0.3628]
[1739844182113,0.0326,96340.0,96336.0,0.3628]
[1739844182302,0.10548,96339.0,96336.0,0.3628]
[1739844182809,0.10548,96339.0,96336.0,0.3648]
[1739844184008,0.10548,96339.0,96336.0,0.3628]
[1739844184211,0.10548,96339.0,96336.0,0.3648]
[1739844184604,0.10548,96339.0,96336.0,0.3628]
[1739844184805,0.10548,96339.0,96336.0,0.3648]
[1739844187015,0.10548,96339.0,96336.0,0.29335829]
[1739844187318,0.0326,96340.0,96336.0,0.29335829]
[1739844187503,0.2401908,96340.0,96336.0,0.29335829]
[1739844187814,0.0324,96339.0,96336.0,0.004]
[1739844188915,0.13764,96340.0,96336.0,0.004]
[1739844192215,0.2075961,96338.0,96336.0,0.004]
[1739844192618,0.3608,96337.0,96336.0,0.004]
[1739844192818,0.2075988,96336.0,96322.0,0.0608]
[1739844193013,0.3608,96326.0,96322.0,0.0608]
[1739844193210,0.0627,96325.0,96322.0,0.0608]
[1739844193411,0.07298921,96325.0,96322.0,0.0608]
[1739844193716,0.07298921,96325.0,96322.0,0.0307]
[1739844194622,0.07298921,96325.0,96322.0,0.0317]
[1739844195019,0.07298921,96325.0,96322.0,0.001]
[1739844195714,0.10518921,96325.0,96322.0,0.001]
[1739844196916,0.07298921,96325.0,96322.0,0.001]
[1739844197112,0.04258921,96325.0,96322.0,0.001]
[1739844197320,0.04258921,96325.0,96323.0,0.0305]
[1739844198423,0.04358921,96325.0,96323.0,0.0305]
[1739844199424,0.04358921,96325.0,96319.0,0.2076336]
[1739844200823,0.0333,96325.0,96319.0,0.2076336]
[1739844201120,0.04347862,96325.0,96319.0,0.2086336]
[1739844201322,0.04347862,96325.0,96319.0,0.001]
[1739844201825,0.04247862,96325.0,96319.0,0.002]
[1739844202418,0.04247862,96325.0,96318.0,0.0325]
[1739844202725,0.04247862,96325.0,96319.0,0.002]
[1739844203322,0.04247862,96325.0,96319.0,0.001]
[1739844203624,0.3608,96324.0,96319.0,0.001]
[1739844203928,0.46608,96324.0,96319.0,0.001]
[1739844204924,0.46608,96324.0,96317.0,0.3608]
[1739844206029,0.46608,96324.0,96317.0,0.3618]
[1739844209122,0.6737053,96324.0,96317.0,0.3618]
[1739844209326,0.5684253,96324.0,96317.0,0.3618]
[1739844210022,0.3608,96324.0,96317.0,0.3618]
[1739844210227,0.2076338,96320.0,96317.0,0.3618]
[1739844210628,0.0332,96319.0,96317.0,0.3618]
[1739844210819,0.13852,96319.0,96317.0,0.3618]
[1739844212124,0.13852,96319.0,96317.0,0.3608]
[1739844212331,0.13852,96319.0,96317.0,0.3618]
[1739844216229,0.13852,96319.0,96317.0,0.001]
[1739844226244,0.10532,96319.0,96317.0,0.001]
[1739844226746,0.10444,96318.0,96317.0,0.001]
[1739844234841,0.2076338,96320.0,96317.0,0.001]
[1739844244145,0.04247862,96325.0,96319.0,0.3608]
[1739844244350,0.3608,96344.0,96323.0,0.2076252]
[1739844244351,1.2662,96336.0,96323.0,0.2076252]
[1739844244552,0.0666826,96330.0,96324.0,0.0629]
[1739844244751,0.3066859,96334.0,96324.0,0.0629]
[1739844245355,0.3066859,96334.0,96327.0,0.3608]
[1739844245746,0.0324,96334.0,96327.0,0.3608]
[1739844245950,0.9054,96336.0,96327.0,0.3608]
[1739844246658,0.00115573,96328.0,96327.0,0.3608]
[1739844247055,0.00215573,96328.0,96327.0,0.3608]
[1739844247256,0.00415573,96328.0,96327.0,0.3608]
[1739844247854,0.00215573,96328.0,96327.0,0.3608]
[1739844248059,0.00515573,96328.0,96327.0,0.3608]
[1739844259871,0.00515573,96328.0,96326.0,0.2076197]
[1739844260072,0.0332,96327.0,96326.0,0.2076197]
[1739844262767,0.0382,96327.0,96326.0,0.2076197]
[1739844264565,0.005,96327.0,96326.0,0.2076197]
[1739844277072,0.005,96327.0,96326.0,0.1996197]
[1739844280275,0.005,96327.0,96321.0,0.3608]
[1739844280479,0.2076313,96321.0,96315.0,0.2191]
[1739844280677,0.0624,96320.0,96315.0,0.2191]
[1739844281785,0.2700332,96320.0,96315.0,0.2191]
[1739844282185,0.2700332,96320.0,96315.0,0.2201]
[1739844282577,0.2700332,96320.0,96315.0,0.2221]
[1739844283081,0.2076355,96319.0,96315.0,0.2221]
[1739844284380,0.0624,96320.0,96315.0,0.2221]
[1739844284381,0.2076376,96318.0,96315.0,0.2221]
[1739844284586,0.2076408,96317.0,96315.0,0.2221]
[1739844284786,0.0305,96316.0,96315.0,0.2221]
[1739844285438,0.0305,96316.0,96315.0,0.003]
[1739844285978,0.0305,96316.0,96315.0,0.001]
[1739844286179,0.0305,96316.0,96315.0,0.002]
[1739844288580,0.0305,96316.0,96315.0,0.001]
[1739844289182,0.0305,96316.0,96310.0,0.3608]
[1739844289488,0.2381431,96316.0,96315.0,0.001]
[1739844289988,0.2411431,96316.0,96310.0,0.3608]
[1739844290386,0.2451431,96316.0,96310.0,0.3608]
[1739844293298,0.3608,96315.0,96300.0,0.1]
[1739844293594,0.2076714,96303.0,96291.0,0.4231]
[1739844293897,0.1333652,96301.0,96291.0,0.4231]
[1739844294490,0.1333652,96301.0,96300.0,0.001]
[1739844294696,0.0301,96302.0,96300.0,0.001]
[1739844295192,0.001,96301.0,96291.0,0.4231]
[1739844295688,0.1343652,96301.0,96300.0,0.001]
[1739844295885,0.001,96301.0,96300.0,0.001]
[1739844296091,0.10436,96301.0,96300.0,0.001]
[1739844296391,0.10436,96301.0,96291.0,0.4231]
[1739844296591,0.001,96301.0,96291.0,0.4231]
[1739844297190,0.01042358,96301.0,96291.0,0.4231]
[1739844297389,0.002,96301.0,96291.0,0.4231]
[1739844298909,0.0301,96302.0,96291.0,0.4231]
[1739844299637,0.04049061,96302.0,96291.0,0.6307948]
[1739844299795,0.1333652,96301.0,96291.0,0.6307948]
[1739844300194,0.1333652,96301.0,96291.0,0.4231]
[1739844300398,0.1333652,96301.0,96293.0,0.2076906]
[1739844300599,0.1333652,96301.0,96294.0,0.0312]
[1739844301298,0.0666826,96301.0,96294.0,0.0312]
[1739844301907,0.0676826,96301.0,96294.0,0.0312]
[1739844302690,0.001,96301.0,96294.0,0.0312]
[1739844303005,0.10336,96300.0,96294.0,0.0312]
[1739844304203,0.10536,96300.0,96294.0,0.0312]
[1739844305498,0.10536,96300.0,96294.0,0.2388881]
[1739844305702,0.002,96300.0,96294.0,0.2388881]
[1739844310010,0.002,96300.0,96299.0,0.3608]
[1739844310212,0.10536,96300.0,96299.0,0.3608]
[1739844310601,0.10536,96300.0,96294.0,0.2388881]
[1739844310807,0.002,96300.0,96294.0,0.2388881]
[1739844311202,0.004,96300.0,96294.0,0.2388881]
[1739844311918,0.005,96300.0,96294.0,0.2388881]
[1739844312398,0.004,96300.0,96294.0,0.2388881]
[1739844313008,0.002,96300.0,96294.0,0.2388881]
[1739844317806,0.002,96300.0,96296.0,0.2076827]
[1739844319004,0.003,96300.0,96296.0,0.2076827]
[1739844327315,0.003,96300.0,96298.0,0.2076796]
[1739844327516,0.003,96300.0,96299.0,0.0312]
[1739844327763,0.10636,96300.0,96299.0,0.0312]
[1739844328519,0.10736,96300.0,96299.0,0.0312]
[1739844328835,0.10836,96300.0,96299.0,0.0312]
[1739844329223,0.10536,96300.0,96299.0,0.0312]
[1739844329423,0.10836,96300.0,96299.0,0.0312]
[1739844329624,0.10836,96300.0,96295.0,0.2076862]
[1739844329825,0.005,96300.0,96295.0,0.2386862]
[1739844332116,0.001,96300.0,96295.0,0.2386862]
[1739844332315,0.003,96300.0,96295.0,0.2386862]
[1739844337215,0.003,96300.0,96293.0,0.3608]
[1739844337420,0.10332,96299.0,96293.0,0.3608]
[1739844338531,0.207688,96295.0,96293.0,0.3608]
[1739844339932,0.207688,96295.0,96286.0,0.00015573]
[1739844340231,0.3608,96291.0,96286.0,0.00015573]
[1739844340432,0.2077008,96289.0,96286.0,0.00015573]
[1739844341731,0.2127008,96289.0,96286.0,0.00015573]
[1739844342820,0.005,96289.0,96286.0,0.00015573]
[1739844348366,0.0325,96288.0,96286.0,0.00015573]
[1739844350636,0.0375,96288.0,96286.0,0.00015573]
[1739844352534,0.005,96288.0,96286.0,0.00015573]
[1739844353230,0.005,96288.0,96286.0,0.03065573]
[1739844361438,0.005,96288.0,96286.0,0.23836113]
[1739844385355,0.005,96288.0,96286.0,0.00015573]
[1739844385554,0.2077041,96287.0,96286.0,0.00015573]
[1739844385861,0.2077041,96287.0,96281.0,0.3608]
[1739844386159,0.005,96288.0,96281.0,0.3608]
[1739844386460,0.10332,96287.0,96281.0,0.3608]
[1739844386756,0.10832,96287.0,96281.0,0.3608]
[1739844387777,0.10532,96287.0,96281.0,0.3608]
[1739844388155,0.10332,96287.0,96281.0,0.3608]
[1739844389762,0.10432,96287.0,96281.0,0.3608]
[1739844390950,0.0315,96286.0,96281.0,0.3608]
[1739844392862,0.0325,96286.0,96281.0,0.3608]
[1739844393271,0.0325,96286.0,96274.0,0.00010393]
[1739844393453,0.1333652,96284.0,96274.0,0.00010393]
[1739844394155,0.3608,96276.0,96274.0,0.00010393]
[1739844394393,0.0952,96275.0,96253.0,0.032]
[1739844394652,0.0952,96275.0,96254.0,0.0614]
[1739844394653,0.3608,96266.0,96254.0,0.0614]
[1739844394967,0.37138797,96266.0,96254.0,0.0614]
[1739844396458,0.1333652,96264.0,96254.0,0.0614]
[1739844396661,0.207762,96261.0,96254.0,0.0614]
[1739844397366,0.207762,96261.0,96247.0,0.3608]
[1739844397557,0.0666826,96257.0,96254.0,0.006]
[1739844397756,0.207762,96261.0,96254.0,0.006]
[1739844398820,0.2077657,96259.0,96254.0,0.006]
[1739844398970,0.0301,96258.0,96254.0,0.006]
[1739844399908,0.0301,96258.0,96254.0,0.004]
[1739844400261,0.2077708,96257.0,96254.0,0.004]
[1739844400456,0.2077708,96257.0,96254.0,0.001]
[1739844400767,0.2077708,96257.0,96254.0,0.004]
[1739844401763,0.2077708,96257.0,96254.0,0.002]
[1739844402270,0.2077725,96256.0,96254.0,0.001]
[1739844402467,0.2077725,96256.0,96254.0,0.002]
[1739844402666,0.0316,96255.0,96254.0,0.002]
[1739844402967,0.13492,96255.0,96254.0,0.002]
[1739844405071,0.10332,96255.0,96254.0,0.002]
[1739844405261,0.0316,96265.0,96261.0,0.2077586]
[1739844405461,0.0316,96265.0,96262.0,0.095]
[1739844405662,0.10332,96264.0,96262.0,0.095]
[1739844406167,0.0316,96265.0,96262.0,0.095]
[1739844406397,0.13492,96265.0,96262.0,0.095]
[1739844406562,0.13692,96265.0,96262.0,0.095]
[1739844407161,0.13792,96265.0,96262.0,0.095]
[1739844407360,0.0346,96265.0,96262.0,0.095]
[1739844407562,0.13792,96265.0,96262.0,0.095]
[1739844410376,0.0346,96265.0,96262.0,0.3027562]
[1739844410578,0.0346,96265.0,96263.0,0.2077547]
[1739844412271,0.2077628,96260.0,96257.0,0.3608]
[1739844412572,0.0613,96264.0,96257.0,0.3608]
[1739844413880,0.3608,96261.0,96251.0,0.2077805]
[1739844414280,0.3608,96261.0,96247.0,0.0316]
[1739844414281,0.4941652,96261.0,96257.0,0.001]
[1739844414492,0.3608,96261.0,96258.0,0.0325]
[1739844414773,0.3608,96261.0,96259.0,0.2077631]